[Event "Titled Tuesday Blitz May 25 2021"]
[White "Annaberdiyev, Babageldi"]
[Black "Martinez Alcantara, Jose Eduardo"]
[WhiteFideId "14000385"]
[BlackFideId "3805662"]
[WhiteElo "2332"]
[BlackElo "2690"]
[Result "0-1"]
[Round "06"]
[TimeControl "180+1"]
[Date "2021.05.25"]
[WhiteClock "0:01:30"]
[BlackClock "0:00:35"]

1. e4 {[%clk 0:03:00]}  c5 {[%clk 0:02:58]} 2. Nf3 {[%clk 0:03:00]}  d6 {[%clk 0:02:58]} 3. d4 {[%clk 0:03:00]}  cxd4 {[%clk 0:02:59]} 4. Nxd4 {[%clk 0:03:00]}  Nf6 {[%clk 0:03:00]} 5. Nc3 {[%clk 0:03:01]}  a6 {[%clk 0:03:00]} 6. Bg5 {[%clk 0:03:01]}  e6 {[%clk 0:03:00]} 7. f4 {[%clk 0:03:01]}  Be7 {[%clk 0:03:00]} 8. Qf3 {[%clk 0:03:01]}  Qc7 {[%clk 0:02:59]} 9. O-O-O {[%clk 0:02:58]}  Nbd7 {[%clk 0:02:58]} 10. g4 {[%clk 0:02:55]}  h6 {[%clk 0:02:55]} 11. Bxf6 {[%clk 0:02:54]}  Bxf6 {[%clk 0:02:56]} 12. h4 {[%clk 0:02:34]}  Nb6 {[%clk 0:02:34]} 13. g5 {[%clk 0:02:14]}  Bxd4 {[%clk 0:02:34]} 14. Rxd4 {[%clk 0:02:15]}  Qc5 {[%clk 0:02:34]} 15. Rd2 {[%clk 0:02:09]}  Bd7 {[%clk 0:02:30]} 16. g6 {[%clk 0:01:59]}  fxg6 {[%clk 0:02:14]} 17. Rg2 {[%clk 0:01:58]}  Rc8 {[%clk 0:01:18]} 18. Rhg1 {[%clk 0:01:41]}  Rf8 {[%clk 0:01:00]} 19. Bd3 {[%clk 0:01:32]}  e5 {[%clk 0:00:43]} 20. f5 {[%clk 0:01:30]}  gxf5 {[%clk 0:00:41]} 21. exf5 {[%clk 0:01:30]}  d5 {[%clk 0:00:35]} 0-1


[Site "https://www.chess.com"]

[Event "Titled Tuesday Blitz May 25 2021"]
[White "Araujo Sanchez, Josue"]
[Black "Terry, Renato"]
[WhiteFideId "6416896"]
[BlackFideId "3803457"]
[WhiteElo "2140"]
[BlackElo "2581"]
[Result "0-1"]
[Round "06"]
[TimeControl "180+1"]
[Date "2021.05.25"]
[WhiteClock "0:02:00"]
[BlackClock "0:02:13"]

1. c4 {[%clk 0:03:00]}  e5 {[%clk 0:02:59]} 2. d3 {[%clk 0:03:00]}  Nc6 {[%clk 0:02:58]} 3. a3 {[%clk 0:03:00]}  g6 {[%clk 0:02:58]} 4. b4 {[%clk 0:03:00]}  Bg7 {[%clk 0:02:58]} 5. Bb2 {[%clk 0:03:01]}  d6 {[%clk 0:02:59]} 6. g3 {[%clk 0:03:01]}  h5 {[%clk 0:02:58]} 7. h4 {[%clk 0:03:01]}  Nh6 {[%clk 0:02:57]} 8. Bg2 {[%clk 0:03:01]}  O-O {[%clk 0:02:57]} 9. Nc3 {[%clk 0:03:01]}  a5 {[%clk 0:02:56]} 10. b5 {[%clk 0:02:58]}  Nd4 {[%clk 0:02:55]} 11. e3 {[%clk 0:02:55]}  Ne6 {[%clk 0:02:54]} 12. Nge2 {[%clk 0:02:49]}  Rb8 {[%clk 0:02:49]} 13. f4 {[%clk 0:02:34]}  Ng4 {[%clk 0:02:47]} 14. Qd2 {[%clk 0:02:31]}  Re8 {[%clk 0:02:43]} 15. Bf3 {[%clk 0:02:30]}  exf4 {[%clk 0:02:41]} 16. gxf4 {[%clk 0:02:31]}  Nxe3 {[%clk 0:02:36]} 17. Qxe3 {[%clk 0:02:22]}  Nd4 {[%clk 0:02:36]} 18. Qf2 {[%clk 0:02:14]}  Nxf3+ {[%clk 0:02:35]} 19. Qxf3 {[%clk 0:02:14]}  Bg4 {[%clk 0:02:35]} 20. Qf2 {[%clk 0:02:12]}  Bxc3+ {[%clk 0:02:24]} 21. Bxc3 {[%clk 0:02:11]}  Rxe2+ {[%clk 0:02:23]} 22. Qxe2 {[%clk 0:02:12]}  Bxe2 {[%clk 0:02:24]} 23. Kxe2 {[%clk 0:02:13]}  Qd7 {[%clk 0:02:19]} 24. Rae1 {[%clk 0:02:03]}  d5 {[%clk 0:02:15]} 25. cxd5 {[%clk 0:02:00]}  Qxd5 {[%clk 0:02:13]} 0-1


[Site "https://www.chess.com"]

[Event "Titled Tuesday Blitz May 25 2021"]
[White "Asis Gargatagli, Hipolito"]
[Black "Vovk, Orest"]
[WhiteFideId "2260735"]
[BlackFideId "14113490"]
[WhiteElo "2557"]
[BlackElo "2203"]
[Result "1-0"]
[Round "06"]
[TimeControl "180+1"]
[Date "2021.05.25"]
[WhiteClock "0:00:08"]
[BlackClock "0:00:04"]

1. e4 {[%clk 0:03:00]}  Nc6 {[%clk 0:02:46]} 2. Nf3 {[%clk 0:02:59]}  d5 {[%clk 0:02:46]} 3. exd5 {[%clk 0:02:57]}  Qxd5 {[%clk 0:02:47]} 4. Nc3 {[%clk 0:02:58]}  Qa5 {[%clk 0:02:45]} 5. Bb5 {[%clk 0:02:55]}  Bd7 {[%clk 0:02:45]} 6. a3 {[%clk 0:02:51]}  O-O-O {[%clk 0:02:37]} 7. O-O {[%clk 0:02:50]}  a6 {[%clk 0:02:35]} 8. b4 {[%clk 0:02:41]}  Qb6 {[%clk 0:02:27]} 9. Be2 {[%clk 0:02:24]}  Nd4 {[%clk 0:02:18]} 10. Nxd4 {[%clk 0:02:18]}  Qxd4 {[%clk 0:02:19]} 11. Rb1 {[%clk 0:02:19]}  Nf6 {[%clk 0:02:08]} 12. Bf3 {[%clk 0:02:15]}  Bg4 {[%clk 0:01:58]} 13. h3 {[%clk 0:01:54]}  Bf5 {[%clk 0:01:32]} 14. Ne2 {[%clk 0:01:31]}  Qh4 {[%clk 0:01:19]} 15. Ng3 {[%clk 0:01:28]}  Bg6 {[%clk 0:01:14]} 16. b5 {[%clk 0:01:16]}  a5 {[%clk 0:01:09]} 17. b6 {[%clk 0:01:14]}  c6 {[%clk 0:01:06]} 18. d3 {[%clk 0:01:14]}  e6 {[%clk 0:00:53]} 19. Qe1 {[%clk 0:00:59]}  Qa4 {[%clk 0:00:48]} 20. Bd2 {[%clk 0:00:58]}  Qxc2 {[%clk 0:00:37]} 21. Qe5 {[%clk 0:00:38]}  Bd6 {[%clk 0:00:32]} 22. Qxa5 {[%clk 0:00:38]}  Kd7 {[%clk 0:00:26]} 23. Qa7 {[%clk 0:00:30]}  Qxd2 {[%clk 0:00:17]} 24. Qxb7+ {[%clk 0:00:29]}  Ke8 {[%clk 0:00:17]} 25. Bxc6+ {[%clk 0:00:28]}  Kf8 {[%clk 0:00:17]} 26. Ne4 {[%clk 0:00:23]}  Nxe4 {[%clk 0:00:14]} 27. dxe4 {[%clk 0:00:24]}  Qf4 {[%clk 0:00:11]} 28. g3 {[%clk 0:00:24]}  Qe5 {[%clk 0:00:11]} 29. Rfd1 {[%clk 0:00:23]}  h6 {[%clk 0:00:07]} 30. Qa7 {[%clk 0:00:19]}  Kg8 {[%clk 0:00:07]} 31. b7 {[%clk 0:00:19]}  Kh7 {[%clk 0:00:07]} 32. Qe3 {[%clk 0:00:14]}  Bc5 {[%clk 0:00:06]} 33. Qf3 {[%clk 0:00:15]}  Rxd1+ {[%clk 0:00:05]} 34. Rxd1 {[%clk 0:00:16]}  Qc7 {[%clk 0:00:04]} 35. e5 {[%clk 0:00:15]}  Qxe5 {[%clk 0:00:04]} 36. h4 {[%clk 0:00:15]}  h5 {[%clk 0:00:04]} 37. Rd7 {[%clk 0:00:15]}  Rb8 {[%clk 0:00:03]} 38. a4 {[%clk 0:00:14]}  Qa1+ {[%clk 0:00:03]} 39. Kg2 {[%clk 0:00:14]}  Qb2 {[%clk 0:00:03]} 40. a5 {[%clk 0:00:13]}  Qa2 {[%clk 0:00:02]} 41. Rxf7 {[%clk 0:00:10]}  Bxf7 {[%clk 0:00:02]} 42. Qxf7 {[%clk 0:00:11]}  Qc2 {[%clk 0:00:02]} 43. Qxh5+ {[%clk 0:00:08]}  Kg8 {[%clk 0:00:02]} 44. Qf3 {[%clk 0:00:09]}  Qf5 {[%clk 0:00:02]} 45. Qe2 {[%clk 0:00:05]}  Qf8 {[%clk 0:00:02]} 46. a6 {[%clk 0:00:05]}  Kh8 {[%clk 0:00:02]} 47. Qh5+ {[%clk 0:00:05]}  Kg8 {[%clk 0:00:02]} 48. f4 {[%clk 0:00:05]}  Ba7 {[%clk 0:00:02]} 49. Be4 {[%clk 0:00:06]}  Qf7 {[%clk 0:00:03]} 50. Qh7+ {[%clk 0:00:05]}  Kf8 {[%clk 0:00:04]} 51. Qh8+ {[%clk 0:00:06]}  Qg8 {[%clk 0:00:04]} 52. Qh5 {[%clk 0:00:06]}  Qf7 {[%clk 0:00:04]} 53. Qe5 {[%clk 0:00:07]}  Qf6 {[%clk 0:00:04]} 54. Qd6+ {[%clk 0:00:07]}  Kg8 {[%clk 0:00:05]} 55. f5 {[%clk 0:00:06]}  exf5 {[%clk 0:00:04]} 56. Bd5+ {[%clk 0:00:05]}  Kh7 {[%clk 0:00:04]} 57. Qf4 {[%clk 0:00:06]}  Qb2+ {[%clk 0:00:05]} 58. Kh3 {[%clk 0:00:06]}  Qf6 {[%clk 0:00:05]} 59. Bf3 {[%clk 0:00:06]}  Qxa6 {[%clk 0:00:05]} 60. Qxf5+ {[%clk 0:00:06]}  Qg6 {[%clk 0:00:05]} 61. Qf4 {[%clk 0:00:07]}  Kh8 {[%clk 0:00:05]} 62. Be4 {[%clk 0:00:07]}  Qe6+ {[%clk 0:00:05]} 63. Bf5 {[%clk 0:00:07]}  Qh6 {[%clk 0:00:06]} 64. Qg4 {[%clk 0:00:07]}  Qf6 {[%clk 0:00:06]} 65. Qh5+ {[%clk 0:00:07]}  Qh6 {[%clk 0:00:06]} 66. Qg4 {[%clk 0:00:08]}  Qf6 {[%clk 0:00:06]} 67. Be4 {[%clk 0:00:08]}  Qh6 {[%clk 0:00:06]} 68. Qc8+ {[%clk 0:00:07]}  Rxc8 {[%clk 0:00:04]} 69. bxc8=Q# {[%clk 0:00:08]} 1-0


[Site "https://www.chess.com"]

[Event "Titled Tuesday Blitz May 25 2021"]
[White "Borsuk, Konstantin"]
[Black "Koellner, Ruben Gideon"]
[WhiteFideId "14113406"]
[BlackFideId "12993093"]
[WhiteElo "2363"]
[BlackElo "2523"]
[Result "0-1"]
[Round "06"]
[TimeControl "180+1"]
[Date "2021.05.25"]
[WhiteClock "0:01:40"]
[BlackClock "0:00:07"]

1. d4 {[%clk 0:03:00]}  d6 {[%clk 0:03:00]} 2. c4 {[%clk 0:02:59]}  e5 {[%clk 0:03:00]} 3. Nf3 {[%clk 0:02:59]}  e4 {[%clk 0:03:00]} 4. Ng5 {[%clk 0:02:59]}  f5 {[%clk 0:03:00]} 5. g3 {[%clk 0:02:58]}  Be7 {[%clk 0:03:00]} 6. h4 {[%clk 0:02:58]}  Nf6 {[%clk 0:03:00]} 7. Nc3 {[%clk 0:02:58]}  c6 {[%clk 0:03:00]} 8. d5 {[%clk 0:02:54]}  c5 {[%clk 0:02:59]} 9. f3 {[%clk 0:02:52]}  exf3 {[%clk 0:02:59]} 10. exf3 {[%clk 0:02:53]}  O-O {[%clk 0:02:59]} 11. Bh3 {[%clk 0:02:45]}  Na6 {[%clk 0:02:53]} 12. O-O {[%clk 0:02:42]}  Nc7 {[%clk 0:02:53]} 13. Re1 {[%clk 0:02:40]}  Re8 {[%clk 0:02:47]} 14. Ne6 {[%clk 0:02:35]}  Bxe6 {[%clk 0:02:33]} 15. dxe6 {[%clk 0:02:36]}  g6 {[%clk 0:02:33]} 16. Nd5 {[%clk 0:02:33]}  b5 {[%clk 0:02:26]} 17. Bf4 {[%clk 0:02:21]}  Ncxd5 {[%clk 0:01:24]} 18. cxd5 {[%clk 0:02:19]}  Rc8 {[%clk 0:01:23]} 19. g4 {[%clk 0:02:19]}  fxg4 {[%clk 0:01:17]} 20. fxg4 {[%clk 0:02:20]}  Qa5 {[%clk 0:01:07]} 21. g5 {[%clk 0:02:15]}  Nh5 {[%clk 0:01:03]} 22. Re4 {[%clk 0:02:04]}  Rf8 {[%clk 0:00:43]} 23. Bh2 {[%clk 0:02:01]}  c4 {[%clk 0:00:25]} 24. Bg4 {[%clk 0:01:59]}  Ng7 {[%clk 0:00:14]} 25. Qc2 {[%clk 0:01:59]}  Qb6+ {[%clk 0:00:13]} 26. Kg2 {[%clk 0:01:56]}  Nf5 {[%clk 0:00:11]} 27. Kh3 {[%clk 0:01:47]}  Ne3 {[%clk 0:00:08]} 28. Qe2 {[%clk 0:01:41]}  Nxg4 {[%clk 0:00:08]} 29. Qxg4 {[%clk 0:01:40]}  Qf2 {[%clk 0:00:08]} 30. Rg1 {[%clk 0:01:40]}  Rf3+ {[%clk 0:00:06]} 31. Rg3 {[%clk 0:01:40]}  Qf1# {[%clk 0:00:07]} 0-1


[Site "https://www.chess.com"]

[Event "Titled Tuesday Blitz May 25 2021"]
[White "Bortnyk, Olexandr"]
[Black "Srihari L R"]
[WhiteFideId "14120828"]
[BlackFideId "46617116"]
[WhiteElo "2723"]
[BlackElo "2121"]
[Result "0-1"]
[Round "06"]
[TimeControl "180+1"]
[Date "2021.05.25"]
[WhiteClock "0:00:01"]
[BlackClock "0:00:12"]

1. d4 {[%clk 0:03:00]}  d5 {[%clk 0:02:59]} 2. Bf4 {[%clk 0:03:01]}  Bf5 {[%clk 0:02:59]} 3. e3 {[%clk 0:03:01]}  e6 {[%clk 0:02:59]} 4. c3 {[%clk 0:03:01]}  Bd6 {[%clk 0:02:55]} 5. Nf3 {[%clk 0:03:01]}  Nf6 {[%clk 0:02:55]} 6. Ne5 {[%clk 0:03:00]}  O-O {[%clk 0:02:54]} 7. Nd2 {[%clk 0:02:50]}  Nbd7 {[%clk 0:02:54]} 8. Be2 {[%clk 0:02:41]}  Qb8 {[%clk 0:02:50]} 9. g4 {[%clk 0:02:39]}  Bg6 {[%clk 0:02:43]} 10. h4 {[%clk 0:02:33]}  h6 {[%clk 0:02:24]} 11. g5 {[%clk 0:02:19]}  hxg5 {[%clk 0:02:21]} 12. hxg5 {[%clk 0:02:16]}  Bxe5 {[%clk 0:02:21]} 13. dxe5 {[%clk 0:02:07]}  Nh7 {[%clk 0:02:10]} 14. Bh5 {[%clk 0:02:02]}  c6 {[%clk 0:01:55]} 15. Bxg6 {[%clk 0:01:43]}  fxg6 {[%clk 0:01:53]} 16. Qg4 {[%clk 0:01:44]}  Rf5 {[%clk 0:01:37]} 17. Nf3 {[%clk 0:01:42]}  Nhf8 {[%clk 0:01:31]} 18. O-O-O {[%clk 0:01:36]}  Qd8 {[%clk 0:01:18]} 19. Nd4 {[%clk 0:01:25]}  Kf7 {[%clk 0:01:04]} 20. e4 {[%clk 0:00:51]}  dxe4 {[%clk 0:00:54]} 21. Nxf5 {[%clk 0:00:51]}  exf5 {[%clk 0:00:53]} 22. Qe2 {[%clk 0:00:51]}  Qe7 {[%clk 0:00:48]} 23. Qc4+ {[%clk 0:00:35]}  Ne6 {[%clk 0:00:46]} 24. Rd6 {[%clk 0:00:19]}  Nb6 {[%clk 0:00:46]} 25. Qb3 {[%clk 0:00:18]}  Nd5 {[%clk 0:00:45]} 26. Be3 {[%clk 0:00:18]}  Rd8 {[%clk 0:00:31]} 27. Bxa7 {[%clk 0:00:05]}  Qxg5+ {[%clk 0:00:30]} 28. Kb1 {[%clk 0:00:03]}  Qe7 {[%clk 0:00:28]} 29. a4 {[%clk 0:00:03]}  b5 {[%clk 0:00:25]} 30. axb5 {[%clk 0:00:03]}  Rxd6 {[%clk 0:00:18]} 31. exd6 {[%clk 0:00:03]}  Qxd6 {[%clk 0:00:19]} 32. bxc6 {[%clk 0:00:03]}  Qxc6 {[%clk 0:00:19]} 33. Rd1 {[%clk 0:00:03]}  Ndf4 {[%clk 0:00:16]} 34. Bb8 {[%clk 0:00:03]}  Nd3 {[%clk 0:00:15]} 35. Rh1 {[%clk 0:00:03]}  e3 {[%clk 0:00:14]} 36. f3 {[%clk 0:00:02]}  Qxf3 {[%clk 0:00:14]} 37. Rh8 {[%clk 0:00:02]}  Qf1+ {[%clk 0:00:12]} 38. Ka2 {[%clk 0:00:01]}  Nc1+ {[%clk 0:00:12]} 0-1


[Site "https://www.chess.com"]

[Event "Titled Tuesday Blitz May 25 2021"]
[White "Dobrov, Vladimir"]
[Black "Jobava, Baadur"]
[WhiteFideId "4136594"]
[BlackFideId "13601520"]
[WhiteElo "2614"]
[BlackElo "2748"]
[Result "1-0"]
[Round "06"]
[TimeControl "180+1"]
[Date "2021.05.25"]
[WhiteClock "0:00:51"]
[BlackClock "0:00:10"]

1. d4 {[%clk 0:03:00]}  d5 {[%clk 0:02:58]} 2. c4 {[%clk 0:03:01]}  c6 {[%clk 0:02:59]} 3. Nc3 {[%clk 0:03:01]}  Nf6 {[%clk 0:02:59]} 4. e3 {[%clk 0:03:01]}  Nbd7 {[%clk 0:02:55]} 5. Nf3 {[%clk 0:03:01]}  Nb6 {[%clk 0:02:55]} 6. b3 {[%clk 0:02:58]}  Bf5 {[%clk 0:02:52]} 7. Bd3 {[%clk 0:02:51]}  e6 {[%clk 0:02:52]} 8. O-O {[%clk 0:02:48]}  Bg6 {[%clk 0:02:50]} 9. Ne5 {[%clk 0:02:45]}  Nbd7 {[%clk 0:02:47]} 10. Nxg6 {[%clk 0:02:43]}  hxg6 {[%clk 0:02:48]} 11. Bb2 {[%clk 0:02:37]}  Ne4 {[%clk 0:02:32]} 12. g3 {[%clk 0:02:19]}  Ndf6 {[%clk 0:02:16]} 13. f3 {[%clk 0:02:18]}  Nxc3 {[%clk 0:02:15]} 14. Bxc3 {[%clk 0:02:18]}  Be7 {[%clk 0:02:05]} 15. Qe2 {[%clk 0:02:17]}  O-O {[%clk 0:02:04]} 16. Rad1 {[%clk 0:02:17]}  Qb6 {[%clk 0:01:58]} 17. Bb1 {[%clk 0:01:57]}  Rad8 {[%clk 0:01:54]} 18. c5 {[%clk 0:01:50]}  Qc7 {[%clk 0:01:54]} 19. b4 {[%clk 0:01:50]}  Rfe8 {[%clk 0:01:38]} 20. e4 {[%clk 0:01:45]}  Nd7 {[%clk 0:01:09]} 21. e5 {[%clk 0:01:45]}  b6 {[%clk 0:01:01]} 22. h4 {[%clk 0:01:42]}  a5 {[%clk 0:00:57]} 23. a3 {[%clk 0:01:41]}  axb4 {[%clk 0:00:57]} 24. axb4 {[%clk 0:01:42]}  bxc5 {[%clk 0:00:57]} 25. bxc5 {[%clk 0:01:38]}  Nf8 {[%clk 0:00:56]} 26. Bd3 {[%clk 0:01:34]}  Rb8 {[%clk 0:00:53]} 27. Ra1 {[%clk 0:01:32]}  Rb3 {[%clk 0:00:51]} 28. Qc2 {[%clk 0:01:25]}  Reb8 {[%clk 0:00:48]} 29. Ra6 {[%clk 0:01:18]}  Nd7 {[%clk 0:00:36]} 30. Rfa1 {[%clk 0:01:11]}  Qc8 {[%clk 0:00:31]} 31. R6a5 {[%clk 0:01:00]}  Qc7 {[%clk 0:00:25]} 32. f4 {[%clk 0:00:59]}  Bd8 {[%clk 0:00:19]} 33. Ra6 {[%clk 0:00:58]}  Qc8 {[%clk 0:00:19]} 34. Kg2 {[%clk 0:00:59]}  R3b7 {[%clk 0:00:17]} 35. R1a3 {[%clk 0:00:55]}  Rb1 {[%clk 0:00:13]} 36. Qa4 {[%clk 0:00:52]}  Rd1 {[%clk 0:00:10]} 37. Qxd1 {[%clk 0:00:51]} 1-0


[Site "https://www.chess.com"]

[Event "Titled Tuesday Blitz May 25 2021"]
[White "Drygalov, Sergey"]
[Black "Madaminov, Mukhiddin"]
[WhiteFideId "24171743"]
[BlackFideId "14210703"]
[WhiteElo "2538"]
[BlackElo "1747"]
[Result "0-1"]
[Round "06"]
[TimeControl "180+1"]
[Date "2021.05.25"]
[WhiteClock "0:00:01"]
[BlackClock "0:00:05"]

1. d4 {[%clk 0:03:00]}  Nf6 {[%clk 0:02:59]} 2. c4 {[%clk 0:03:00]}  e6 {[%clk 0:03:00]} 3. Nf3 {[%clk 0:03:01]}  Bb4+ {[%clk 0:03:00]} 4. Nbd2 {[%clk 0:02:59]}  b6 {[%clk 0:02:59]} 5. a3 {[%clk 0:02:59]}  Bxd2+ {[%clk 0:02:59]} 6. Qxd2 {[%clk 0:03:00]}  Bb7 {[%clk 0:03:00]} 7. e3 {[%clk 0:03:00]}  d6 {[%clk 0:03:00]} 8. Be2 {[%clk 0:03:01]}  Nbd7 {[%clk 0:03:01]} 9. b4 {[%clk 0:03:01]}  O-O {[%clk 0:03:01]} 10. Bb2 {[%clk 0:03:01]}  Ne4 {[%clk 0:03:01]} 11. Qc2 {[%clk 0:03:01]}  f5 {[%clk 0:03:02]} 12. O-O {[%clk 0:03:01]}  Rf6 {[%clk 0:03:02]} 13. d5 {[%clk 0:03:00]}  Rg6 {[%clk 0:03:02]} 14. Rad1 {[%clk 0:02:57]}  e5 {[%clk 0:02:47]} 15. Bd3 {[%clk 0:02:51]}  Ndf6 {[%clk 0:02:32]} 16. Nh4 {[%clk 0:02:47]}  Rg5 {[%clk 0:02:21]} 17. f3 {[%clk 0:02:44]}  Rh5 {[%clk 0:02:15]} 18. Nxf5 {[%clk 0:02:17]}  Rxf5 {[%clk 0:02:12]} 19. Bxe4 {[%clk 0:02:17]}  Nxe4 {[%clk 0:02:12]} 20. Qxe4 {[%clk 0:02:12]}  Qg5 {[%clk 0:02:12]} 21. Qd3 {[%clk 0:02:08]}  Raf8 {[%clk 0:02:08]} 22. e4 {[%clk 0:02:05]}  R5f6 {[%clk 0:02:08]} 23. Bc1 {[%clk 0:02:03]}  Qh5 {[%clk 0:02:07]} 24. Be3 {[%clk 0:01:58]}  Bc8 {[%clk 0:02:05]} 25. Rd2 {[%clk 0:01:57]}  Rg6 {[%clk 0:02:01]} 26. f4 {[%clk 0:01:12]}  exf4 {[%clk 0:01:56]} 27. Rxf4 {[%clk 0:01:01]}  Rxf4 {[%clk 0:01:49]} 28. Bxf4 {[%clk 0:01:02]}  Rf6 {[%clk 0:01:44]} 29. Bg3 {[%clk 0:00:57]}  Bg4 {[%clk 0:01:36]} 30. c5 {[%clk 0:00:48]}  Qg6 {[%clk 0:01:27]} 31. h3 {[%clk 0:00:34]}  Bf3 {[%clk 0:01:20]} 32. Kh2 {[%clk 0:00:34]}  Bxe4 {[%clk 0:01:19]} 33. Qe3 {[%clk 0:00:33]}  Rf1 {[%clk 0:01:04]} 34. Qc3 {[%clk 0:00:25]}  h5 {[%clk 0:00:48]} 35. cxd6 {[%clk 0:00:23]}  cxd6 {[%clk 0:00:48]} 36. Qc8+ {[%clk 0:00:15]}  Kh7 {[%clk 0:00:48]} 37. Qe6 {[%clk 0:00:16]}  Rf6 {[%clk 0:00:44]} 38. Qe7 {[%clk 0:00:17]}  a5 {[%clk 0:00:24]} 39. b5 {[%clk 0:00:14]}  a4 {[%clk 0:00:22]} 40. Qc7 {[%clk 0:00:06]}  Qg5 {[%clk 0:00:13]} 41. Re2 {[%clk 0:00:06]}  h4 {[%clk 0:00:13]} 42. Bxd6 {[%clk 0:00:06]}  Qxd5 {[%clk 0:00:10]} 43. Be5 {[%clk 0:00:05]}  Rg6 {[%clk 0:00:10]} 44. Bf4 {[%clk 0:00:02]}  Bxg2 {[%clk 0:00:09]} 45. Qe5 {[%clk 0:00:02]}  Qf3 {[%clk 0:00:08]} 46. Re3 {[%clk 0:00:01]}  Qd1 {[%clk 0:00:05]} 0-1


[Site "https://www.chess.com"]

[Event "Titled Tuesday Blitz May 25 2021"]
[White "Erigaisi Arjun"]
[Black "Zubov, Alexander"]
[WhiteFideId "35009192"]
[BlackFideId "14109409"]
[WhiteElo "2609"]
[BlackElo "2740"]
[Result "1-0"]
[Round "06"]
[TimeControl "180+1"]
[Date "2021.05.25"]
[WhiteClock "0:00:03"]
[BlackClock "0:00:23"]

1. b3 {[%clk 0:03:00]}  d5 {[%clk 0:02:59]} 2. Bb2 {[%clk 0:03:00]}  c5 {[%clk 0:02:59]} 3. e3 {[%clk 0:02:59]}  Nc6 {[%clk 0:02:59]} 4. f4 {[%clk 0:02:58]}  a6 {[%clk 0:02:58]} 5. Nf3 {[%clk 0:02:58]}  Bf5 {[%clk 0:02:57]} 6. d3 {[%clk 0:02:57]}  e6 {[%clk 0:02:57]} 7. Nbd2 {[%clk 0:02:57]}  Nf6 {[%clk 0:02:56]} 8. g3 {[%clk 0:02:51]}  Be7 {[%clk 0:02:50]} 9. Bg2 {[%clk 0:02:51]}  O-O {[%clk 0:02:51]} 10. O-O {[%clk 0:02:51]}  h6 {[%clk 0:02:51]} 11. Qe2 {[%clk 0:02:49]}  Bh7 {[%clk 0:02:47]} 12. Kh1 {[%clk 0:02:42]}  Rc8 {[%clk 0:02:46]} 13. a3 {[%clk 0:02:41]}  b5 {[%clk 0:02:46]} 14. Rad1 {[%clk 0:02:32]}  Qb6 {[%clk 0:02:40]} 15. e4 {[%clk 0:02:28]}  c4 {[%clk 0:02:31]} 16. dxc4 {[%clk 0:01:26]}  bxc4 {[%clk 0:02:28]} 17. Bxf6 {[%clk 0:01:21]}  Bxf6 {[%clk 0:02:28]} 18. bxc4 {[%clk 0:01:21]}  dxe4 {[%clk 0:02:23]} 19. Nxe4 {[%clk 0:01:22]}  Be7 {[%clk 0:02:23]} 20. Rd7 {[%clk 0:01:10]}  Bxa3 {[%clk 0:02:18]} 21. Ne5 {[%clk 0:01:00]}  Nxe5 {[%clk 0:02:00]} 22. fxe5 {[%clk 0:01:01]}  Rc7 {[%clk 0:01:59]} 23. Rd3 {[%clk 0:00:49]}  Be7 {[%clk 0:01:57]} 24. Rb3 {[%clk 0:00:47]}  Qa5 {[%clk 0:01:56]} 25. Nd6 {[%clk 0:00:32]}  Qc5 {[%clk 0:01:54]} 26. Rd1 {[%clk 0:00:27]}  Rd8 {[%clk 0:01:43]} 27. h4 {[%clk 0:00:21]}  Rcd7 {[%clk 0:01:32]} 28. Qe3 {[%clk 0:00:17]}  Bxd6 {[%clk 0:00:49]} 29. exd6 {[%clk 0:00:16]}  Qxc4 {[%clk 0:00:46]} 30. Rb6 {[%clk 0:00:15]}  Bxc2 {[%clk 0:00:40]} 31. Rc6 {[%clk 0:00:11]}  Qb3 {[%clk 0:00:40]} 32. Rc3 {[%clk 0:00:08]}  Qa4 {[%clk 0:00:38]} 33. Rd4 {[%clk 0:00:07]}  Qa1+ {[%clk 0:00:37]} 34. Kh2 {[%clk 0:00:08]}  Bg6 {[%clk 0:00:37]} 35. Qd2 {[%clk 0:00:06]}  e5 {[%clk 0:00:36]} 36. Rd5 {[%clk 0:00:05]}  e4 {[%clk 0:00:36]} 37. Bh3 {[%clk 0:00:05]}  f5 {[%clk 0:00:29]} 38. Rc7 {[%clk 0:00:05]}  Qf6 {[%clk 0:00:26]} 39. Rxd7 {[%clk 0:00:04]}  Rxd7 {[%clk 0:00:27]} 40. Qf4 {[%clk 0:00:05]}  Qe6 {[%clk 0:00:23]} 41. Rd4 {[%clk 0:00:04]}  h5 {[%clk 0:00:23]} 42. Qd2 {[%clk 0:00:03]}  Kh7 {[%clk 0:00:22]} 43. Bf1 {[%clk 0:00:03]}  a5 {[%clk 0:00:22]} 44. Bc4 {[%clk 0:00:03]}  Rd8 {[%clk 0:00:23]} 45. Bxe6 {[%clk 0:00:03]} 1-0


[Site "https://www.chess.com"]

[Event "Titled Tuesday Blitz May 25 2021"]
[White "Eynullayev, Atilla"]
[Black "Nazaretyan, Tigran"]
[WhiteFideId "13413570"]
[BlackFideId "24162345"]
[WhiteElo "1997"]
[BlackElo "2247"]
[Result "0-1"]
[Round "06"]
[TimeControl "180+1"]
[Date "2021.05.25"]
[WhiteClock "0:00:01"]
[BlackClock "0:00:55"]

1. e4 {[%clk 0:03:00]}  c5 {[%clk 0:02:59]} 2. Nf3 {[%clk 0:03:01]}  d6 {[%clk 0:02:59]} 3. d4 {[%clk 0:03:01]}  cxd4 {[%clk 0:02:58]} 4. Nxd4 {[%clk 0:03:02]}  Nf6 {[%clk 0:02:59]} 5. Nc3 {[%clk 0:03:02]}  Nc6 {[%clk 0:02:59]} 6. Bg5 {[%clk 0:03:03]}  e6 {[%clk 0:02:58]} 7. Bb5 {[%clk 0:03:03]}  Bd7 {[%clk 0:02:58]} 8. Qd3 {[%clk 0:03:03]}  Be7 {[%clk 0:02:51]} 9. O-O-O {[%clk 0:03:03]}  Qc7 {[%clk 0:02:49]} 10. Rhe1 {[%clk 0:02:51]}  Rc8 {[%clk 0:02:34]} 11. f4 {[%clk 0:02:31]}  h6 {[%clk 0:02:15]} 12. Bxf6 {[%clk 0:02:19]}  gxf6 {[%clk 0:02:13]} 13. f5 {[%clk 0:01:58]}  Nxd4 {[%clk 0:02:08]} 14. Bxd7+ {[%clk 0:01:52]}  Qxd7 {[%clk 0:02:06]} 15. Qxd4 {[%clk 0:01:52]}  a6 {[%clk 0:02:02]} 16. Kb1 {[%clk 0:01:14]}  Qc6 {[%clk 0:02:00]} 17. Qd3 {[%clk 0:00:55]}  b5 {[%clk 0:01:52]} 18. a3 {[%clk 0:00:55]}  Qc4 {[%clk 0:01:51]} 19. Qh3 {[%clk 0:00:52]}  b4 {[%clk 0:01:47]} 20. axb4 {[%clk 0:00:51]}  Qxb4 {[%clk 0:01:48]} 21. fxe6 {[%clk 0:00:52]}  fxe6 {[%clk 0:01:48]} 22. Rd3 {[%clk 0:00:44]}  Rb8 {[%clk 0:01:33]} 23. b3 {[%clk 0:00:41]}  Kd7 {[%clk 0:01:31]} 24. e5 {[%clk 0:00:25]}  fxe5 {[%clk 0:01:27]} 25. Rxe5 {[%clk 0:00:24]}  Qc4 {[%clk 0:01:19]} 26. Re4 {[%clk 0:00:21]}  Rxb3+ {[%clk 0:01:10]} 27. Kc1 {[%clk 0:00:14]}  Bg5+ {[%clk 0:01:09]} 28. Kd1 {[%clk 0:00:14]}  Rb1+ {[%clk 0:01:09]} 29. Nxb1 {[%clk 0:00:12]}  Qxe4 {[%clk 0:01:09]} 30. Nc3 {[%clk 0:00:10]}  Qf4 {[%clk 0:01:07]} 31. Ke2 {[%clk 0:00:02]}  Rf8 {[%clk 0:01:05]} 32. Nd1 {[%clk 0:00:01]}  Qe5+ {[%clk 0:00:59]} 33. Ne3 {[%clk 0:00:01]}  a5 {[%clk 0:00:58]} 34. Qg4 {[%clk 0:00:01]}  Rf4 {[%clk 0:00:55]} 0-1


[Site "https://www.chess.com"]